bitfinex-derivatives/quotes_SOLF0:USTF0_20250301
["timestamp","ask_amount","ask_price","bid_price","bid_amount"]
[1740794506377,234.9625,149.24,149.23,43.95995028]
[1740794506578,238.3225,149.24,149.23,18.34515028]
[1740794506780,229.6,149.24,149.23,18.34515028]
[1740794507083,229.62,149.24,149.23,18.34515028]
[1740794507471,229.62,149.24,149.22,110.30086863]
[1740794507670,229.62,149.24,149.22,0.04440499]
[1740794509186,5.3628,149.23,149.22,0.04440499]
[1740794509578,8.7228,149.23,149.22,0.04440499]
[1740794509779,229.62,149.24,149.22,0.04440499]
[1740794513479,5.3628,149.23,149.22,0.04440499]
[1740794513985,8.7228,149.23,149.22,0.04440499]
[1740794514291,8.7228,149.23,149.22,4.99e-06]
[1740794515191,24.68021309,149.23,149.17,0.27894]
[1740794515384,5.3646,149.18,149.17,0.27894]
[1740794515583,20.7646,149.18,149.17,0.27894]
[1740794516290,15.4,149.18,149.17,0.27894]
[1740794516882,0.04682611,149.19,149.17,0.27894]
[1740794517483,0.04682611,149.19,149.17,0.00118286]
[1740794517688,0.04682611,149.19,149.17,5.36588286]
[1740794517884,0.04682611,149.19,149.17,0.00118286]
[1740794519185,5.3646,149.18,149.17,0.00118286]
[1740794520294,8.7246,149.18,149.17,0.00118286]
[1740794520681,19.98,149.18,148.91,16.123]
[1740794520885,19.98,149.16,149.03,5.3697]
[1740794521088,19.98,149.16,148.96,15.32]
[1740794521089,21.32084204,149.16,148.96,15.32]
[1740794521291,1.34093194,149.15,148.97,3.4648]
[1740794521492,19.98,149.13,148.96,5.3725]
[1740794521792,5.3704,149.02,148.93,3.4648]
[1740794521991,214.52,149.02,148.93,3.4648]
[1740794522186,214.52,149.02,148.92,7.4818]
[1740794522187,214.52,149.02,148.96,0.04806896]
[1740794522388,0.04302177,148.99,148.96,0.04806896]
[1740794523393,214.52,149.02,148.96,0.04806896]
[1740794524098,214.52,149.02,149.0,5.3711]
[1740794524292,197.531,149.02,148.97,7.2368]
[1740794524594,15.4,149.08,148.98,0.04819173]
[1740794524792,214.62,149.1,148.97,22.6168]
[1740794525598,219.9879,149.1,148.97,22.6168]
[1740794525786,0.04916566,149.05,149.02,0.04509032]
[1740794526390,214.62,149.1,149.05,5.369]
[1740794526791,214.62,149.1,148.97,7.2368]
[1740794526990,219.9875,149.1,148.97,7.2368]
[1740794527393,219.9875,149.1,149.03,5.3697]
[1740794527599,0.04507345,149.05,149.02,0.04679125]
[1740794527789,214.62,149.1,148.97,10.5968]
[1740794527993,214.62,149.1,148.97,7.2368]
[1740794528297,5.3683,149.08,148.97,7.2368]
[1740794528495,214.62,149.1,149.02,5.3701]
[1740794528792,214.62,149.1,148.97,22.5568]
[1740794529007,0.04802098,149.07,149.05,0.04390813]
[1740794529198,0.04802098,149.07,149.0,5.3708]
[1740794529389,0.04802098,149.07,149.05,0.05152058]
[1740794529603,5.3694,149.05,149.0,5.3708]
[1740794529898,15.28,149.08,149.01,5.3707]
[1740794530101,0.04236153,149.04,149.01,0.04392356]
[1740794530500,0.04236153,149.04,149.03,5.37]
[1740794531199,0.04236153,149.04,149.01,0.04392356]
[1740794532407,0.04236153,149.04,149.03,5.37]
[1740794533202,214.62,149.1,149.05,5.3692]
[1740794533394,214.62,149.1,149.02,3.5677]
[1740794534391,0.04933568,149.07,149.05,0.04332079]
[1740794534898,0.04933568,149.07,149.06,5.369]
[1740794535105,0.04933568,149.07,149.05,0.04332079]
[1740794535600,5.41803568,149.07,149.05,0.04332079]
[1740794535903,0.04933568,149.07,149.05,0.04332079]
[1740794536794,5.41813568,149.07,149.05,0.04332079]
[1740794536997,0.04933568,149.07,149.05,0.04332079]
[1740794541408,5.369,149.06,149.05,0.04332079]
[1740794541809,8.729,149.06,149.05,0.04332079]
[1740794542005,5.369,149.06,149.05,0.04332079]
[1740794542206,5.3705,149.02,148.95,3.4338]
[1740794542711,30.9005,149.02,148.95,3.4338]
[1740794543106,30.9005,149.02,148.96,5.3723]
[1740794543304,30.9005,149.02,148.95,3.4338]
[1740794543305,25.53,149.02,148.95,3.4338]
[1740794543505,0.04471266,149.0,148.98,0.05105302]
[1740794543709,25.53,149.02,148.99,5.3715]
[1740794543904,50.7881,149.09,148.98,0.05105302]
[1740794544211,50.7881,149.09,148.96,14.98]
[1740794544405,53.2981,149.09,148.96,14.98]
[1740794544608,53.2981,149.09,148.97,15.45839766]
[1740794544808,73.44750247,149.04,149.02,5.3704]
[1740794545013,73.40030858,149.04,148.97,15.45839766]
[1740794545213,73.4467965,149.04,149.02,0.04686497]
[1740794545512,73.4467965,149.04,148.97,15.45839766]
[1740794545714,73.4467965,149.04,149.02,0.04768682]
[1740794545916,73.4467965,149.04,148.99,15.45839766]
[1740794546116,67.7852965,149.04,149.03,5.37]
[1740794546314,32.6116965,149.04,149.03,20.82839766]
[1740794546616,100.31275937,149.05,149.04,5.3697]
[1740794546813,77.87865937,149.05,149.04,5.3697]
[1740794547015,77.87865937,149.05,149.04,24.18809766]
[1740794547209,175.3626101,149.06,149.05,5.3693]
[1740794547416,226.83388169,149.09,149.04,15.45839766]
[1740794547612,169.72671677,149.09,149.05,15.45839766]
[1740794547813,0.05058131,149.08,149.05,15.45839766]
[1740794548216,0.05058131,149.08,149.04,0.04560319]
[1740794549016,3.53748131,149.08,149.04,0.04560319]
[1740794549915,0.05058131,149.08,149.04,0.04560319]
[1740794552719,8.131e-05,149.08,149.07,5.3686]
[1740794552920,8.131e-05,149.1,149.04,3.40560319]
[1740794553117,8.131e-05,149.1,149.09,5.3679]
[1740794553422,8.131e-05,149.1,149.09,20.3279]
[1740794553627,8.131e-05,149.1,149.09,23.6879]
[1740794554020,4.696e-05,149.11,149.09,18.32]
[1740794554323,4.696e-05,149.14,149.09,210.32]
[1740794554518,3.7532,149.26,149.1,1.23220389]
[1740794554720,7.4826,149.26,149.16,5.3651]
[1740794554915,11.2556,149.26,149.1,192.0]
[1740794555327,5.3654,149.16,149.09,14.96]
[1740794555523,11.2556,149.26,149.09,14.96]
[1740794556024,0.04991324,149.19,149.16,0.04919037]
[1740794556223,14.92,149.2,149.09,14.96]
[1740794556520,3.4653,149.19,149.05,42.83776857]
[1740794557027,5.3674,149.11,149.05,48.20696857]
[1740794557327,3.434,149.18,149.05,48.20696857]
[1740794557328,3.434,149.18,149.05,42.83776857]
[1740794557629,5.3654,149.16,149.04,14.9]
[1740794557819,3.434,149.18,149.1,0.04498886]
[1740794558019,0.04610343,149.13,149.1,0.04498886]
[1740794559925,5.3669,149.12,149.1,0.04498886]
[1740794560625,5.3672,149.11,149.1,0.04498886]
[1740794561026,0.04610343,149.13,149.07,37.0854946]
[1740794561530,5.3674,149.11,149.07,37.0854946]
[1740794562021,0.04610343,149.13,149.07,37.0854946]
[1740794562221,0.04610343,149.13,149.08,0.05107826]
[1740794562617,0.04610343,149.13,149.07,37.0854946]
[1740794562824,5.3682,149.08,149.07,37.0854946]
[1740794563223,214.68,149.11,149.0,20.1174946]
[1740794563630,0.04639355,149.07,149.04,0.04640636]
[1740794564631,5.3693,149.06,149.04,0.04640636]
[1740794564826,0.04639355,149.07,149.04,0.04640636]
[1740794565132,5.3692,149.06,149.04,0.04640636]
[1740794565528,0.04639355,149.07,149.04,0.04640636]
[1740794566229,5.3652,149.17,149.04,3.40640636]
[1740794566420,5.3652,149.17,149.05,3.6597]
[1740794566625,214.7,149.18,149.14,5.366]
[1740794566822,214.7,149.18,149.08,14.72]
[1740794567132,325.93648383,149.25,149.09,3.7331]
[1740794567327,0.0463406,149.14,149.12,0.04829817]
[1740794567636,340.65648383,149.25,149.09,199.0931]
[1740794567826,331.29868383,149.25,149.09,195.7331]
[1740794568332,334.78118383,149.25,149.19,5.3641]
[1740794568735,0.04350012,149.23,149.21,0.0491588]
[1740794569033,5.40640012,149.23,149.21,0.0491588]
[1740794569332,0.04350012,149.23,149.21,0.0491588]
[1740794569728,5.40640012,149.23,149.21,0.0491588]
[1740794570332,5.3632,149.22,149.21,0.0491588]
[1740794570531,0.04350012,149.23,149.1,14.64]
[1740794570830,218.1625,149.25,149.13,5.3661]
[1740794571034,218.1625,149.25,149.1,14.64]
[1740794571733,0.04256117,149.19,149.16,0.04905805]
[1740794572035,14.6,149.21,149.1,14.64]
[1740794572331,0.04255752,149.19,149.1,14.64]
[1740794572628,3.4522,149.2,149.14,0.0502786]
[1740794572827,0.04415165,149.16,149.14,0.0502786]
[1740794573934,0.04415165,149.16,149.14,5.4162786]
[1740794574526,0.04415165,149.16,149.14,0.0502786]
[1740794575329,0.04415165,149.16,149.14,5.4160786]
[1740794576022,0.04415165,149.16,149.15,5.3657]
[1740794576738,0.04415165,149.16,149.14,5.4162786]
[1740794577038,0.04415165,149.16,149.14,0.0502786]
[1740794577233,3.1491,149.19,149.15,14.7]
[1740794577441,114.91938383,149.38,149.16,1.23163007]
[1740794577730,7.0969,149.36,149.17,14.78]
[1740794578235,1.15809084,149.35,149.17,14.78]
[1740794578436,0.0479279,149.28,149.25,0.04590154]
[1740794578637,14.76,149.3,149.17,14.78]
[1740794578840,18.3072,149.29,149.17,14.78]
[1740794579235,28.15637913,149.29,149.17,14.78]
[1740794579841,0.05096466,149.24,149.22,0.04720761]
[1740794580038,28.15637913,149.29,149.22,0.04720761]
[1740794580639,0.0466926,149.27,149.22,0.04720761]
[1740794581042,9.89587173,149.27,149.08,214.62]
[1740794581233,13.44727913,149.27,149.11,9.27137365]
[1740794581841,5.3624,149.25,149.18,5.3645]
[1740794582243,5.3624,149.25,149.11,9.27137365]
[1740794582244,0.05096645,149.23,149.2,0.04599756]
[1740794582445,5.3625,149.24,149.17,5.3649]
[1740794582641,14.70986748,149.23,149.2,0.04505575]
[1740794582837,14.70986748,149.23,149.11,9.27137365]
[1740794583034,24.50917913,149.23,149.11,9.27137365]
[1740794583440,24.50917913,149.23,149.09,23.97137365]
[1740794583747,9.84917913,149.23,149.2,5.3637]
[1740794583940,8.539e-05,149.17,149.15,0.04519051]
[1740794584248,13.44727913,149.27,149.14,14.64]
[1740794585051,3.5981,149.27,149.14,14.64]
[1740794585245,6.99872629,149.35,149.19,0.04903739]
[1740794585542,34.47917913,149.3,149.14,41.0]
[1740794585746,3.4561,149.29,149.12,225.2931]
[1740794585941,3.4561,149.29,149.13,16.03189766]
[1740794586141,5.3612,149.28,149.13,14.8]
[1740794586344,16.83387913,149.29,149.13,14.8]
[1740794586646,0.04259196,149.22,149.21,5.3635]
[1740794586834,5.3611,149.28,149.13,14.8]
[1740794587035,0.04624224,149.23,149.2,0.05001657]
[1740794587640,0.04624224,149.23,149.21,5.3633]
[1740794588237,24.63,149.3,149.29,5.3607]
[1740794588948,24.63,149.3,149.21,14.76]
[1740794589149,34.47917913,149.3,149.12,225.2931]
[1740794589343,0.04996284,149.27,149.24,0.05086315]
[1740794589648,34.47917913,149.3,149.22,15.08]
[1740794589850,0.04543415,149.27,149.24,0.05142712]
[1740794590237,9.89461328,149.27,149.24,0.05142712]
[1740794591145,0.04543415,149.27,149.24,0.05142712]
[1740794591346,39.69,149.3,149.24,0.05142712]
[1740794591347,24.63,149.3,149.24,3.39142712]
[1740794591546,24.63,149.3,149.24,0.05142712]
[1740794592657,0.04455947,149.28,149.27,5.3612]
[1740794595446,5.947e-05,149.28,149.27,5.3612]
[1740794596051,5.60115947,149.3,149.29,5.3607]
[1740794596245,3.6053,149.32,149.29,15.1]
[1740794597044,3.6053,149.32,149.25,15.1]
[1740794597253,3.64988174,149.32,149.29,0.05133679]
[1740794598148,3.64988174,149.32,149.29,5.41203679]
[1740794598452,3.64988174,149.32,149.29,0.05133679]
[1740794598854,3.64988174,149.32,149.31,5.36]
[1740794600150,271.07941247,149.51,149.31,18.36]
[1740794600451,3.3962,149.47,149.31,15.02]
[1740794600650,5.3553,149.44,149.4,5.3567]
[1740794600851,13.24546087,149.47,149.37,15.18]
[1740794601453,7.0418,149.5,149.41,0.04422523]
[1740794601645,20.28726087,149.5,149.37,15.18]
[1740794601851,20.28726087,149.5,149.44,0.04869184]
[1740794602144,20.28726087,149.5,149.37,15.18]
[1740794602560,28.46,149.49,149.37,15.18]
[1740794602851,5.3554,149.44,149.39,5.3571]
[1740794603056,38.30926087,149.49,149.37,15.18]
[1740794603259,0.04869477,149.43,149.4,0.04545286]
[1740794603554,38.30926087,149.49,149.4,5.3567]
[1740794603755,0.04531524,149.43,149.4,0.04430643]
[1740794603952,0.04531524,149.43,149.27,10.7225]
[1740794603953,38.30926087,149.49,149.33,15.12]
[1740794604155,0.0446986,149.43,149.4,0.05001768]
[1740794604354,5.3562,149.42,149.37,5.3577]
[1740794604558,9.89637444,149.43,149.4,0.05096527]
[1740794604760,3.7015,149.42,149.35,5.3584]
[1740794605057,5.357,149.4,149.33,15.12]
[1740794605256,17.02956087,149.42,149.37,0.04644321]
[1740794605456,5.40413061,149.38,149.37,0.04644321]
[1740794605654,5.3575,149.38,149.37,0.04644321]
[1740794605958,0.04572125,149.39,149.37,0.04644321]
[1740794606847,0.04572125,149.39,149.38,5.3575]
[1740794607253,0.04572125,149.39,149.37,0.04644321]
[1740794607446,0.04572125,149.39,149.37,5.40424321]
[1740794607856,0.04572125,149.39,149.37,0.04644321]
[1740794608251,0.04572125,149.39,149.38,5.3575]
[1740794609357,18.5,149.46,149.43,5.3556]
[1740794610458,23.87467362,149.46,149.43,0.05114501]
[1740794610762,28.36933449,149.46,149.43,0.05114501]
[1740794611260,18.52007362,149.46,149.43,0.05114501]
[1740794612359,28.36933449,149.46,149.43,0.05114501]
[1740794612560,7.0876,149.45,149.34,15.04]
[1740794612762,7.0876,149.45,149.4,5.3567]
[1740794613063,16.93686087,149.45,149.34,15.04]
[1740794613262,22.29206087,149.45,149.4,5.3567]
[1740794613658,0.04359238,149.44,149.41,0.04661418]
[1740794613859,16.93686087,149.45,149.41,5.3561]
[1740794614058,0.04517471,149.44,149.41,0.05048746]
[1740794614459,0.04517471,149.44,149.41,5.40678746]
[1740794614660,0.04517471,149.44,149.41,0.05048746]
[1740794615059,7.471e-05,149.44,149.43,5.3557]
[1740794618661,7.471e-05,149.44,149.41,0.05048746]
[1740794618869,9.84933558,149.44,149.41,5.40658746]
[1740794619068,9.84933558,149.44,149.41,0.05048746]
[1740794619463,9.84933558,149.44,149.43,5.3557]
[1740794619870,7.471e-05,149.44,149.43,5.3557]
[1740794620666,10.46627471,149.46,149.45,5.3549]
[1740794620872,1.78697471,149.46,149.45,5.3549]
[1740794621070,1.78697471,149.46,149.4,15.0]
[1740794621672,1.78697471,149.46,149.42,0.04585471]
[1740794621974,0.02604392,149.44,149.42,0.04585471]
[1740794622272,0.02604392,149.44,149.43,5.3554]
[1740794625174,0.02604392,149.44,149.42,0.04585471]
[1740794625375,9.87530479,149.44,149.42,0.04585471]
[1740794625766,9.87530479,149.44,149.39,9.27137365]
[1740794626470,9.87530479,149.44,149.38,5.3572]
[1740794626675,5.3557,149.43,149.37,5.3577]
[1740794627067,0.04724691,149.41,149.39,0.05054806]
[1740794628476,9.89650778,149.41,149.39,0.05054806]
[1740794629177,9.89650778,149.41,149.35,9.27137365]
[1740794629380,6.9914,149.4,149.35,9.27137365]
[1740794629876,16.84066087,149.4,149.35,9.27137365]
[1740794630073,16.84066087,149.4,149.34,36.90287006]
[1740794630273,16.84066087,149.4,149.36,0.04552417]
[1740794630474,16.84066087,149.4,149.34,25.64039423]
[1740794631073,5.3585,149.35,149.34,14.33339423]
[1740794631274,5.3585,149.35,149.34,8.67869423]
[1740794631475,15.20776087,149.35,149.34,8.67869423]
[1740794632789,9.84926087,149.35,149.33,0.04346921]
[1740794632980,5.3589,149.34,149.33,0.04346921]
[1740794633481,15.20816087,149.34,149.33,0.04346921]
[1740794634081,15.20826087,149.34,149.3,5.3602]
[1740794634285,9.84926087,149.34,149.27,88.95098922]
[1740794634671,23.7214,149.4,149.27,88.95098922]
[1740794634672,23.7214,149.4,149.27,280.95098922]
[1740794634877,33.57066087,149.4,149.27,280.95098922]
[1740794635179,6.353e-05,149.35,149.34,5.3589]
[1740794635376,16.73,149.4,149.34,14.68]
[1740794635887,26.57926087,149.4,149.34,14.68]
[1740794636384,0.04515137,149.38,149.36,0.04680425]
[1740794636781,9.89441224,149.38,149.36,0.04680425]
[1740794636982,9.89441224,149.38,149.3,14.66]
[1740794637377,15.25191224,149.38,149.33,5.359]
[1740794637778,15.25191224,149.38,149.3,14.66]
[1740794637779,9.89441224,149.38,149.3,14.66]
[1740794638287,29.39,149.37,149.33,0.04318564]
[1740794638483,29.39,149.37,149.34,5.3588]
[1740794638684,39.23926087,149.37,149.34,5.3588]
[1740794638979,39.23926087,149.37,149.33,0.04318564]
[1740794640484,44.59716087,149.37,149.33,5.40228564]
[1740794640982,44.59716087,149.37,149.26,74.17098922]
[1740794640983,39.23926087,149.37,149.26,88.73098922]
[1740794641184,7.273,149.36,149.26,88.73098922]
[1740794641787,22.48056087,149.36,149.32,5.3595]
[1740794642185,0.0456445,149.35,149.34,5.3588]
[1740794644995,0.0456445,149.35,149.33,5.40288024]
[1740794645190,0.0456445,149.35,149.33,0.04378024]
[1740794645393,9.89490537,149.35,149.33,0.04378024]
[1740794645796,9.89490537,149.35,149.28,74.17098922]
[1740794645983,9.89490537,149.35,149.29,5.3604]
[1740794646286,0.0456445,149.35,149.28,74.17098922]
[1740794646490,0.0456445,149.35,149.34,5.3589]
[1740794647693,0.0456445,149.35,149.33,5.40740186]
[1740794647894,0.0456445,149.35,149.33,0.04840186]
[1740794648094,9.89490537,149.35,149.33,0.04840186]
[1740794648299,0.0456445,149.35,149.33,0.04840186]
[1740794648700,9.89490537,149.35,149.33,0.04840186]
[1740794649300,0.0456445,149.35,149.34,5.3589]
[1740794649798,4.45e-05,149.35,149.34,5.3589]
[1740794650097,10.7303445,149.37,149.36,5.3582]
[1740794650304,16.73,149.4,149.34,21.3909]
[1740794651107,26.57926087,149.4,149.34,21.3909]
[1740794651306,0.04823834,149.38,149.34,21.3909]
[1740794651895,9.89749921,149.38,149.33,0.04840186]
[1740794652206,5.3589,149.34,149.33,0.04840186]
[1740794652601,15.20816087,149.34,149.33,0.04840186]
[1740794652807,0.04713401,149.35,149.33,0.04840186]
[1740794652995,9.89639488,149.35,149.33,0.04840186]
[1740794653309,5.3589,149.34,149.33,0.04840186]
[1740794653701,0.04713401,149.35,149.33,0.04840186]
[1740794653898,9.89639488,149.35,149.33,0.04840186]
[1740794654099,9.89639488,149.35,149.29,74.17098922]
[1740794654598,14.44,149.34,149.29,74.17098922]
[1740794654804,5.3603,149.3,149.29,68.51668922]
[1740794655206,15.20956087,149.3,149.29,68.51668922]
[1740794656703,5.3607,149.29,149.28,76.91315495]
[1740794657209,5.3607,149.29,149.28,0.05104277]
[1740794657608,19.7407,149.29,149.28,0.05104277]
[1740794660215,5.41095663,149.31,149.28,0.05104277]
[1740794660512,0.05075663,149.31,149.28,0.05104277]
[1740794661109,0.05075663,149.31,149.29,5.3604]
[1740794661302,0.05075663,149.31,149.28,0.05104277]
[1740794661507,5.663e-05,149.31,149.28,0.05104277]
[1740794661708,5.663e-05,149.31,149.3,5.3603]
[1740794662215,34.44,149.38,149.37,5.3578]
[1740794662709,34.44,149.38,149.29,10.9951]
[1740794663116,35.71,149.37,149.29,10.9951]
[1740794663511,0.04572206,149.34,149.32,0.05063806]
[1740794665611,14.28,149.33,149.25,3.5442]
[1740794666019,5.3605,149.3,149.25,3.5442]
[1740794666218,14.28,149.33,149.25,3.5442]
[1740794666911,0.04859171,149.3,149.28,0.044981]
[1740794667218,5.3607,149.29,149.28,0.044981]
[1740794667417,0.04859171,149.3,149.28,0.044981]
[1740794668217,5.3607,149.29,149.28,0.044981]
[1740794669310,0.04859171,149.3,149.28,0.044981]
[1740794670115,5.40899171,149.3,149.28,0.044981]
[1740794670320,0.04859171,149.3,149.28,0.044981]
[1740794671220,5.3607,149.29,149.28,0.044981]
[1740794671618,0.04859171,149.3,149.28,0.044981]
[1740794672325,5.3607,149.29,149.28,0.044981]
[1740794674327,5.3607,149.29,149.28,8.1e-05]
[1740794674621,8.7007,149.29,149.28,8.1e-05]
[1740794674925,5.3607,149.29,149.28,8.1e-05]
[1740794675621,8.7007,149.29,149.28,8.1e-05]
[1740794677325,8.8682,149.29,149.28,8.1e-05]
[1740794677823,28.8482,149.29,149.28,8.1e-05]
[1740794682130,5.3628,149.24,149.16,5.3653]
[1740794682320,228.4,149.23,149.16,5.3653]
[1740794683130,233.7629,149.23,149.16,5.3653]
[1740794683331,0.04333641,149.21,149.18,0.04961738]
[1740794683828,19.98,149.2,149.03,27.79057354]
[1740794684027,19.98,149.2,149.04,10.5275]
[1740794684227,5.3653,149.17,149.07,5.3683]
[1740794684430,14.0,149.16,149.04,10.5275]
[1740794684731,14.0,149.16,149.06,5.3689]
[1740794684932,0.04461141,149.11,149.09,0.05141601]
[1740794685132,19.3654,149.16,149.09,0.05141601]
[1740794685333,0.04321657,149.11,149.09,0.05141601]
[1740794685633,0.04952729,149.11,149.09,0.05141601]
[1740794685834,216.13,149.23,149.09,0.05141601]
[1740794686026,13.98,149.22,149.04,10.5275]
[1740794686622,19.3435,149.22,149.12,5.3665]
[1740794686931,0.04373014,149.18,149.16,0.0503118]
[1740794687135,30.7638,149.21,149.11,5.3671]
[1740794687437,0.04623205,149.18,149.16,0.04587089]
[1740794687831,13.94,149.17,149.16,0.04587089]
[1740794688528,19.305,149.17,149.16,0.04587089]
[1740794688728,17.3,149.17,149.06,5.3687]
[1740794689036,13.94,149.17,149.05,13.94]
[1740794689436,13.94,149.17,149.04,10.5275]
[1740794689634,34.07,149.17,149.04,10.5275]
[1740794689835,5.3671,149.12,149.04,10.5275]
[1740794690034,13.98731031,149.12,149.09,0.04388732]
[1740794690637,5.3675,149.1,149.09,0.04388732]
[1740794691232,5.3685,149.08,148.99,3.5237]
[1740794691439,5.3685,149.08,148.99,10.5123]
[1740794691637,34.07,149.12,148.99,7.0309]
[1740794691832,5.3689,149.07,148.99,7.0309]
[1740794692034,13.96,149.07,148.99,7.0309]
[1740794692325,0.0468413,149.04,149.02,0.0487468]
[1740794693339,7.67,149.06,149.02,0.0487468]
[1740794694533,0.05041476,149.05,149.02,0.0487468]
[1740794697037,5.37,149.04,149.02,0.0487468]
[1740794697240,0.05041476,149.05,149.02,0.0487468]
[1740794697646,5.37,149.03,149.02,0.0487468]
[1740794698237,0.05041476,149.05,149.02,0.0487468]
[1740794698739,29.1,149.07,149.02,0.0487468]
[1740794699243,34.4689,149.07,149.02,0.0487468]
[1740794699746,0.04457672,149.06,149.02,0.0487468]
[1740794699943,5.41367672,149.06,149.02,0.0487468]
[1740794700143,0.04457672,149.06,149.02,0.0487468]
[1740794700646,0.7806,149.07,149.02,0.0487468]
[1740794701641,0.04815992,149.06,149.02,0.0487468]
[1740794701940,214.54,149.13,149.02,3.4087468]
[1740794702135,1.67,149.07,149.0,205.96]
[1740794702337,228.5,149.13,149.04,5.3695]
[1740794702536,228.5,149.13,149.0,13.96]
[1740794702936,5.3691,149.06,149.05,0.04293879]
[1740794703346,0.04659214,149.08,149.05,0.04293879]
[1740794704348,5.3689,149.07,149.05,0.04293879]
[1740794704743,5.3686,149.07,149.05,0.04293879]
[1740794705242,0.04659214,149.08,149.05,0.04293879]
[1740794705543,13.96,149.07,149.05,0.04293879]
[1740794705948,5.369,149.06,149.05,0.04293879]
[1740794706744,5.369,149.06,149.05,3.879e-05]
[1740794708949,8.9126,149.06,149.05,3.879e-05]
[1740794709255,5.3687,149.07,149.05,3.879e-05]
[1740794709452,0.04659214,149.08,149.05,3.879e-05]
[1740794709650,5.41499214,149.08,149.05,3.879e-05]
[1740794710542,0.04659214,149.08,149.05,3.879e-05]
[1740794710743,5.3686,149.07,149.05,3.879e-05]
[1740794711552,0.04659214,149.08,149.05,3.879e-05]
[1740794711749,5.369,149.06,149.05,3.879e-05]
[1740794712453,19.329,149.06,149.05,3.879e-05]
[1740794714659,22.689,149.06,149.05,3.879e-05]
[1740794718264,19.329,149.06,149.05,3.879e-05]
[1740794720264,5.369,149.06,149.05,3.879e-05]
[1740794720460,19.329,149.06,149.05,3.879e-05]
[1740794722662,234.129,149.06,149.05,3.879e-05]
[1740794723059,220.169,149.06,149.05,3.879e-05]
[1740794723264,234.129,149.06,149.05,3.879e-05]
[1740794732866,220.169,149.06,149.05,3.879e-05]
[1740794733170,214.8,149.06,149.05,3.879e-05]
[1740794733468,197.8107,149.06,149.05,3.879e-05]
[1740794734769,0.04659214,149.08,149.05,3.879e-05]
[1740794734971,91.6041,149.1,149.05,3.36003879]
[1740794735271,78.65,149.1,149.09,5.3679]
[1740794735472,78.65,149.1,149.02,13.96]
[1740794735671,41.12,149.1,149.06,5.3687]
[1740794735872,41.12,149.1,149.0,13.96]
[1740794736063,41.12,149.1,149.04,0.04569139]
[1740794736267,41.12,149.1,148.99,13.96]
[1740794736268,0.0454549,149.06,149.05,5.3693]
[1740794736571,41.12,149.1,149.05,5.3693]
[1740794736769,0.04657565,149.07,149.04,0.0429011]
[1740794737462,0.04657565,149.07,149.05,5.3693]
[1740794737662,0.04657565,149.07,149.04,0.0429011]
[1740794738172,5.41517565,149.07,149.04,0.0429011]
[1740794738676,5.3693,149.05,149.04,0.0429011]
[1740794739467,7.04057565,149.07,149.0,37.02331302]
[1740794739666,5.3707,149.02,148.94,5.3732]
[1740794739873,214.78,149.05,148.94,5.3732]
[1740794740073,5.3709,149.01,148.94,5.3732]
[1740794740769,0.05137051,148.99,148.96,0.04357214]
[1740794740973,5.42297051,148.99,148.96,0.04357214]
[1740794741179,0.05137051,148.99,148.96,0.04357214]
[1740794742880,5.42297051,148.99,148.96,0.04357214]
[1740794743278,0.05137051,148.99,148.96,0.04357214]
[1740794744078,5.3722,148.97,148.96,0.04357214]
[1740794752589,13.96,148.98,148.96,0.04357214]
[1740794752791,19.332,148.98,148.96,0.04357214]
[1740794753692,13.96,148.98,148.96,0.04357214]
[1740794753892,0.05137051,148.99,148.96,0.04357214]
[1740794754294,0.05137051,148.99,148.96,5.41587214]
[1740794754803,0.05137051,148.99,148.96,0.04357214]
[1740794756600,0.05137051,148.99,148.98,5.3718]
[1740794760699,0.05137051,148.99,148.97,5.3721]
[1740794760900,0.05137051,148.99,148.96,0.04357214]
[1740794761704,0.05137051,148.99,148.98,5.3718]
[1740794761901,0.05137051,148.99,148.96,0.04357214]
[1740794763103,5.42317051,148.99,148.96,0.04357214]
[1740794764008,0.05137051,148.99,148.96,0.04357214]
[1740794764306,5.3719,148.98,148.96,0.04357214]
[1740794766010,0.05137051,148.99,148.96,0.04357214]
[1740794766803,0.05137051,148.99,148.98,5.3718]
[1740794767205,7.051e-05,148.99,148.98,5.3718]
[1740794768508,7.051e-05,148.99,148.98,8.7318]